bitfinex-derivatives/quotes_ETHF0:USTF0_20220108
["timestamp","ask_amount","ask_price","bid_price","bid_amount"]
[1641666248485,1.5,3064.0,3061.0,1.5]
[1641666248486,1.5,3063.5,3060.7,1.5]
[1641666248687,1.5,3062.8,3060.2,4.784]
[1641666248887,1.5,3062.8,3060.4,0.4849]
[1641666249088,12.00478999,3062.4,3061.7,2.00479]
[1641666249289,1.5,3062.2,3061.7,2.00479]
[1641666249489,0.08164,3062.1,3061.7,2.00279]
[1641666249692,0.264788,3062.0,3061.7,2.00279]
[1641666249890,0.264788,3062.0,3059.8,1.5]
[1641666250191,1.764788,3062.0,3059.8,0.4873]
[1641666250390,1.5,3061.4,3059.8,0.4873]
[1641666250589,0.08168,3061.9,3059.9,5.22722]
[1641666250791,0.08167,3062.3,3060.1,1.5]
[1641666250991,0.08165,3063.4,3061.0,1.5]
[1641666251292,0.08164,3063.8,3062.9,2.00479]
[1641666252198,1.5,3065.2,3062.9,2.00479]
[1641666252492,0.0816,3065.5,3063.0,5.22304]
[1641666252691,1.5,3065.8,3063.0,5.22304]
[1641666252893,0.08157,3065.7,3063.3,1.5]
[1641666253092,2.00479,3065.7,3064.9,2.00479]
[1641666253292,0.264788,3065.6,3064.9,2.00479]
[1641666254493,1.5,3065.4,3064.9,2.00479]
[1641666254697,1.5,3065.0,3064.9,2.00479]
[1641666254894,1.5,3065.0,3062.1,1.5]
[1641666255094,2.00479,3064.5,3063.8,2.00479]
[1641666255399,0.264788,3064.4,3063.8,2.00479]
[1641666255595,1.5,3063.9,3063.8,2.00479]
[1641666255798,1.58158,3063.9,3061.0,0.4776]
[1641666255995,1.58158,3063.9,3060.1,1.5]
[1641666255996,0.08162,3063.8,3060.1,1.5]
[1641666256198,0.08162,3063.8,3060.5,1.5]
[1641666256199,1.5,3063.5,3060.5,1.5]
[1641666256395,1.5,3062.7,3060.5,1.5]
[1641666256598,1.5,3062.7,3060.6,5.225342]
[1641666256796,9.99999999,3062.1,3059.9,1.63277569]
[1641666256995,0.08167,3062.0,3058.9,1.5]
[1641666257197,2.00479,3060.8,3059.9,3.50479]
[1641666257395,2.00479,3060.8,3059.9,2.00479]
[1641666257597,2.00479,3061.1,3060.5,1.5]
[1641666257797,3.32715226,3075.2,3061.0,1.5]
[1641666257798,0.6725,3062.7,3061.0,1.5]
[1641666257999,0.08164,3062.6,3060.6,5.227391]
[1641666258198,10.08163999,3062.9,3060.6,5.227391]
[1641666258396,0.08165,3062.8,3060.1,3.64285332]
[1641666258796,0.08165,3063.3,3060.1,3.64285332]
[1641666258996,0.08165,3063.3,3061.1,1.5]
[1641666259196,2.00479,3063.1,3062.7,3.64285332]
[1641666259395,2.00479,3063.1,3062.4,3.64285332]
[1641666259799,0.08164,3064.5,3062.5,0.640787]
[1641666260197,0.0816,3065.0,3062.5,0.640787]
[1641666260497,13.76,3064.9,3062.5,0.640787]
[1641666260799,7.85714667,3064.4,3063.4,3.35897142]
[1641666260996,0.08158,3064.3,3062.1,2.00479]
[1641666261200,2.00479,3063.4,3062.7,2.00479]
[1641666261397,2.00479,3063.7,3062.7,2.00479]
[1641666262597,2.00479,3063.7,3062.8,1.5]
[1641666262798,2.00479,3063.7,3062.7,2.00479]
[1641666263197,0.0816,3064.9,3063.2,1.63114309]
[1641666263198,0.0816,3064.6,3063.2,1.63114309]
[1641666263398,13.76,3065.3,3063.3,3.64285332]
[1641666263599,0.08157,3065.2,3063.3,3.64285332]
[1641666263800,1.71258805,3065.2,3063.4,1.63101805]
[1641666263998,13.76,3065.0,3063.1,2.00479]
[1641666264198,0.08158,3064.9,3063.1,2.00479]
[1641666264798,13.76,3064.7,3063.1,2.00479]
[1641666265003,0.08158,3064.6,3063.1,2.00479]
[1641666265198,2.00479,3064.1,3063.1,5.64764332]
[1641666265400,0.0816,3066.0,3063.7,3.64285332]
[1641666265600,0.0816,3066.0,3064.8,3.64285332]
[1641666265799,1.63012205,3066.9,3065.1,1.63012205]
[1641666266202,34.99373,3068.2,3064.5,3.64285332]
[1641666266501,1.62995465,3067.2,3065.4,1.62995465]
[1641666266702,0.08153,3067.1,3065.6,3.64285332]
[1641666266901,0.08153,3067.1,3065.8,3.64285332]
[1641666267101,13.76,3068.1,3065.8,3.64285332]
[1641666267102,2.00479,3066.6,3065.9,2.00479]
[1641666267303,0.08151,3068.0,3065.9,2.00479]
[1641666267304,1.62887938,3069.2,3066.5,3.12941286]
[1641666267504,0.08153,3068.8,3066.5,1.62941286]
[1641666267703,0.08149,3069.8,3067.8,3.64285332]
[1641666267900,0.08149,3069.8,3068.8,0.002]
[1641666268102,0.08144,3070.3,3068.8,0.002]
[1641666268402,0.08144,3069.7,3068.8,0.002]
[1641666268601,0.08144,3070.4,3068.8,0.002]
[1641666268801,0.08143,3070.8,3069.3,3.64285332]
[1641666269003,1.62792477,3071.0,3069.3,1.62792477]
[1641666269202,2.00479,3070.1,3069.7,2.01142549]
[1641666269402,2.00479,3070.4,3070.0,2.01142549]
[1641666269602,0.08142,3073.0,3070.1,2.01142549]
[1641666269803,1.62771279,3071.4,3070.1,1.62748497]
[1641666270005,0.0814,3071.6,3069.8,0.640787]
[1641666270403,9.4885745,3072.4,3069.8,0.640787]
[1641666270603,0.08139,3072.3,3069.4,2.00479]
[1641666270808,0.08139,3072.3,3069.2,2.01142549]
[1641666271003,4.0,3072.4,3069.2,0.97743497]
[1641666271204,2.00479,3070.8,3070.1,2.00479]
[1641666271406,2.00479,3070.8,3070.2,0.640787]
[1641666271805,2.00479,3070.8,3070.4,2.01342549]
[1641666272006,0.08142,3073.2,3070.7,5.14060856]
[1641666272203,0.08142,3073.2,3071.2,2.01342549]
[1641666272403,0.08142,3073.2,3071.0,2.01342549]
[1641666272606,0.08142,3073.2,3071.4,2.01342549]
[1641666272803,0.08137,3073.3,3071.6,3.640103]
[1641666273003,0.08137,3073.3,3071.6,1.62667751]
[1641666273303,2.00479,3072.7,3072.1,1.62641559]
[1641666273504,2.00479,3072.7,3072.2,0.640787]
[1641666274104,1.62607179,3074.8,3072.6,3.63949727]
[1641666274304,0.08132,3074.7,3072.6,2.01342549]
[1641666274504,0.08132,3075.6,3072.9,2.01342549]
[1641666274703,13.76,3076.4,3073.6,2.01342549]
[1641666274906,13.76,3076.4,3072.7,0.007677]
[1641666274907,9.4865745,3076.1,3073.0,5.20359]
[1641666275206,2.00479,3074.1,3073.3,2.00479]
[1641666275406,0.264788,3074.0,3073.3,2.00479]
[1641666275606,0.264788,3074.0,3073.4,0.640787]
[1641666275807,0.08132,3074.6,3073.9,2.01342549]
[1641666276008,0.08132,3074.6,3073.4,0.640787]
[1641666276009,0.08132,3075.5,3074.5,2.01342549]
[1641666276207,0.08129,3077.6,3075.0,2.01342549]
[1641666276507,1.62460563,3077.3,3075.4,1.62460563]
[1641666276708,0.08125,3077.2,3076.1,1.62433382]
[1641666276906,1.40342024,3078.2,3075.0,2.01342549]
[1641666276907,0.08125,3077.7,3075.0,2.01342549]
[1641666277107,2.00479,3076.4,3076.2,5.200461]
[1641666277406,2.00479,3076.4,3074.9,1.04852675]
[1641666277808,2.08607,3076.4,3074.0,1.64649657]
[1641666278206,2.08607,3076.4,3075.0,4.551098]
[1641666278406,1.62561977,3075.4,3074.0,1.64649657]
[1641666278605,1.62561977,3075.4,3074.1,5.202913]
[1641666278807,0.08129,3076.1,3074.1,5.202913]
[1641666279006,0.08128,3076.3,3074.1,5.202913]
[1641666279207,2.00479,3074.8,3074.1,7.207703]
[1641666279416,0.264788,3074.7,3074.2,0.640787]
[1641666279607,0.264788,3074.7,3074.1,7.207703]
[1641666279809,0.264788,3074.7,3073.0,1.2590093]
[1641666280009,0.08132,3074.6,3073.0,1.2590093]
[1641666280209,0.08132,3074.6,3072.3,1.5]
[1641666280412,2.00479,3074.8,3073.1,2.01342549]
[1641666280609,2.00479,3074.8,3073.1,5.205283]
[1641666280812,2.00479,3074.8,3073.0,0.97623992]
[1641666281010,2.00479,3074.8,3073.2,5.205029]
[1641666281210,2.00479,3073.3,3073.2,5.205029]
[1641666281510,2.269578,3073.3,3072.2,2.00479]
[1641666281913,2.269578,3073.3,3071.3,1.02774903]
[1641666282111,2.269578,3073.3,3070.3,2.01342549]
[1641666282311,0.08137,3073.2,3070.0,0.51342549]
[1641666282513,0.08137,3073.2,3070.2,0.51342549]
[1641666282717,0.08137,3073.2,3069.9,2.01342549]
[1641666283016,0.08137,3073.2,3071.1,2.01342549]
[1641666283214,2.00479,3072.1,3071.9,2.01342549]
[1641666283416,2.00479,3072.1,3072.0,0.640787]
[1641666283618,2.00479,3072.5,3071.4,2.00479]
[1641666284418,2.00479,3072.5,3071.5,5.208418]
[1641666284616,2.00479,3072.5,3071.1,2.00479]
[1641666284816,0.08137,3072.4,3071.1,2.00479]
[1641666285216,2.00479,3071.5,3071.1,2.00479]
[1641666285419,2.00479,3071.5,3071.3,2.01342549]
[1641666285819,2.00479,3071.8,3071.3,2.01342549]
[1641666286019,0.08139,3074.2,3071.7,2.01342549]
[1641666286219,0.08135,3074.6,3071.4,6.18608941]
[1641666286422,0.08135,3074.6,3072.3,0.97646437]
[1641666286620,0.08133,3075.6,3072.7,0.51342549]
[1641666286820,0.97523928,3076.2,3073.1,0.97619995]
[1641666286821,0.08132,3076.1,3073.1,0.97619995]
[1641666287020,0.08132,3076.1,3073.2,0.51342549]
[1641666287220,1.16999857,3077.0,3073.6,2.98083737]
[1641666287221,2.00479,3074.3,3073.6,2.98083737]
[1641666287421,2.00479,3074.3,3073.7,0.640787]
[1641666288123,2.00479,3074.6,3073.7,0.640787]
[1641666288519,2.00479,3074.6,3073.8,6.704944]
[1641666288720,2.00479,3074.6,3074.3,0.97581133]
[1641666288920,0.08132,3077.1,3074.3,2.98923682]
[1641666289122,0.08132,3077.1,3074.4,5.204182]
[1641666289320,2.00479,3075.3,3074.6,2.00479]
[1641666289520,0.264788,3075.2,3074.4,5.204182]
[1641666289722,0.264788,3075.2,3074.7,0.640787]
[1641666289920,2.00479,3075.3,3075.1,2.01342549]
[1641666290121,0.08129,3077.5,3075.1,2.01342549]
[1641666290420,0.08125,3077.8,3075.2,0.97553575]
[1641666290620,1.62486696,3076.8,3075.2,0.97553575]
[1641666290824,0.08126,3076.7,3075.7,2.01342549]
[1641666291021,1.40342024,3078.2,3075.5,1.5]
[1641666291222,2.00479,3077.1,3076.3,4.01821549]
[1641666291423,2.00479,3077.1,3076.7,2.01342549]
[1641666291720,2.269578,3077.1,3076.7,2.01342549]
[1641666291921,2.00479,3077.1,3076.7,2.01342549]
[1641666292321,2.269578,3077.1,3076.7,2.01342549]
[1641666292524,2.269578,3077.1,3076.4,1.62414915]
[1641666292722,2.269578,3077.1,3076.3,2.00479]
[1641666293325,2.269578,3077.1,3076.0,2.00479]
[1641666293523,2.269578,3077.1,3075.1,1.5]
[1641666293723,2.269578,3077.1,3074.8,2.01342549]
[1641666293924,2.269578,3077.1,3075.1,2.01342549]
[1641666294124,2.269578,3077.1,3075.4,2.01342549]
[1641666294323,2.269578,3077.1,3075.3,3.252098]
[1641666294523,2.269578,3077.1,3075.5,5.201137]
[1641666294725,0.08125,3077.0,3075.8,4.0]
[1641666294923,2.269578,3077.1,3076.3,0.97517949]
[1641666294924,2.00479,3077.1,3076.3,0.97517949]
[1641666295125,2.00479,3077.1,3076.4,0.640787]
[1641666295324,0.08125,3079.1,3077.0,2.01342549]
[1641666295522,0.08125,3079.1,3076.8,0.97502544]
[1641666295723,0.08121,3079.3,3076.8,0.97502544]
[1641666295926,0.08121,3079.3,3077.1,0.97492205]
[1641666295927,9.4865745,3078.9,3077.1,0.97492205]
[1641666296123,13.76,3078.2,3074.8,2.01342549]
[1641666296324,9.4865745,3077.9,3075.0,1.5]
[1641666296624,0.08125,3077.8,3076.0,2.01342549]
[1641666296823,9.5678245,3078.8,3076.0,2.01342549]
[1641666297024,1.62443145,3077.6,3075.9,1.62443145]
[1641666297222,2.00479,3076.2,3075.4,3.63811294]
[1641666297422,2.00479,3076.2,3063.7,0.89967118]
[1641666297423,0.264788,3076.1,3073.9,1.17111663]
[1641666298023,0.08129,3076.0,3074.0,2.01142549]
[1641666298223,0.08129,3076.0,3074.0,5.203252]
[1641666298424,0.6725,3076.1,3075.0,2.01142549]
[1641666298823,2.00479,3076.2,3074.8,4.0]
[1641666299025,2.00479,3076.2,3075.4,2.01142549]
[1641666299225,0.08128,3077.9,3075.5,0.640787]
[1641666299625,9.5698245,3078.6,3075.5,0.640787]
[1641666299924,1.62495938,3076.6,3075.5,0.640787]
[1641666300726,0.6725,3076.7,3075.5,0.640787]
[1641666300925,1.62494617,3076.6,3075.5,2.65221249]
[1641666301128,0.6725,3076.7,3075.5,2.65221249]
[1641666301326,0.08126,3077.5,3075.6,1.5]
[1641666301627,0.08125,3079.3,3076.8,2.01142549]
[1641666301827,1.62402782,3078.4,3077.2,2.01142549]
[1641666302028,1.62402782,3078.4,3076.7,0.97506863]
[1641666302229,1.62424939,3078.0,3076.7,0.97506863]
[1641666302627,0.08122,3078.8,3076.7,0.97506863]
[1641666303128,1.6242705,3077.9,3077.2,2.01142549]
[1641666303329,1.62381685,3078.8,3077.4,2.01142549]
[1641666303530,1.62381685,3078.8,3077.5,2.01142549]
[1641666303930,13.84121,3080.0,3077.6,0.51142549]
[1641666304131,13.84121,3080.0,3077.3,0.97485408]
[1641666304330,1.62389068,3078.6,3077.6,2.01142549]
[1641666304530,13.76,3079.8,3077.6,2.01142549]
[1641666304731,1.62388541,3078.6,3077.3,2.98627957]
[1641666305231,4.00958,3077.4,3077.3,0.97485408]
[1641666305430,4.274368,3077.4,3076.6,1.17009865]
[1641666305629,4.274368,3077.4,3076.7,0.640787]
[1641666306030,4.274368,3077.4,3076.6,1.17009865]
[1641666306631,4.274368,3077.4,3076.6,3.18152414]
[1641666307232,2.00479,3076.7,3076.6,1.68152414]
[1641666307432,2.00479,3076.7,3076.6,1.17009865]
[1641666307634,2.00479,3076.7,3075.9,1.43266406]
[1641666308032,0.264788,3076.6,3076.0,0.640787]
[1641666308434,0.264788,3076.6,3075.9,1.43266406]
[1641666309338,0.6725,3075.8,3073.9,2.00479]
[1641666309540,0.6725,3075.8,3073.8,1.81980744]
[1641666309837,0.08128,3075.9,3073.7,1.56776313]
[1641666310437,0.08128,3075.9,3073.9,2.01142549]
[1641666310638,0.08128,3075.9,3073.7,1.56776313]
[1641666310838,0.08128,3075.9,3073.8,2.01142549]
[1641666311039,0.08128,3075.9,3073.7,1.56776313]
[1641666311040,0.08128,3075.9,3073.7,3.57918862]
[1641666311243,2.00479,3073.9,3073.7,3.57918862]
[1641666311437,2.00479,3073.9,3073.7,2.20855013]
[1641666311639,2.00479,3073.9,3073.2,2.00479]
[1641666312038,2.00479,3073.9,3073.8,3.20064259]
[1641666312240,2.00479,3073.9,3073.8,1.1892171]
[1641666312640,1.05539064,3074.2,3073.8,1.1892171]
[1641666313039,0.264788,3074.1,3073.2,2.00479]
[1641666313642,14.95062053,3074.2,3072.7,1.15174805]
[1641666313841,14.95062053,3074.2,3071.6,1.12629151]
[1641666314040,13.76,3074.0,3071.6,1.12629151]
[1641666314241,0.08135,3073.9,3072.2,2.01142549]
[1641666314440,0.08135,3073.9,3070.6,1.12313686]
[1641666314441,0.6725,3073.7,3070.6,1.12313686]
[1641666314641,0.08136,3073.6,3071.7,1.5]
[1641666314941,0.08135,3074.1,3072.1,1.12258996]
[1641666315341,2.00479,3072.2,3071.4,2.00479]
[1641666315542,2.00479,3072.2,3071.1,2.00479]
[1641666315543,0.2647,3072.1,3071.1,2.00479]
[1641666315742,0.2647,3072.1,3070.0,4.6725]
[1641666315942,0.08139,3072.0,3070.7,1.04218641]
[1641666316142,2.00479,3072.2,3071.2,2.01142549]
[1641666316346,2.00479,3072.2,3070.7,1.04218641]
[1641666316743,0.08139,3072.1,3069.0,1.5]
[1641666316943,0.08139,3072.1,3070.0,2.01142549]
[1641666317143,0.08139,3072.1,3069.7,2.01142549]
[1641666317343,2.00479,3070.7,3070.0,2.00479]
[1641666317543,0.2647,3070.6,3068.5,3.09166535]
[1641666317745,0.2647,3070.6,3069.0,2.01142549]
[1641666317944,0.2647,3070.6,3069.4,2.01142549]
[1641666318146,2.00479,3071.1,3070.5,2.01142549]
[1641666318345,0.08143,3072.4,3071.0,2.01142549]
[1641666318544,0.97579469,3074.5,3070.0,0.97716864]
[1641666318545,0.08137,3073.5,3070.9,2.47688665]
[1641666318744,0.08137,3073.5,3071.4,2.01142549]
[1641666318947,9.4885745,3073.9,3071.3,2.01142549]
[1641666319146,0.08136,3073.4,3073.2,2.01142549]
[1641666319348,34.6775,3074.7,3073.3,2.269578]
[1641666319349,2.00479,3074.0,3073.3,2.269578]
[1641666319548,2.00479,3074.0,3073.0,2.00479]
[1641666319748,2.00479,3074.3,3073.0,2.00479]
[1641666320150,1.62637327,3073.9,3073.1,0.94970215]
[1641666320348,2.00479,3074.3,3073.2,0.905575]
[1641666320550,2.00479,3074.3,3073.2,1.41700049]
[1641666320551,1.62624631,3074.2,3073.2,1.41700049]
[1641666320752,1.62624631,3074.2,3073.2,0.905575]
[1641666321149,2.00479,3074.3,3073.2,0.905575]
[1641666321150,2.00479,3074.3,3074.0,2.01142549]
[1641666321352,2.00479,3074.9,3074.2,2.00479]
[1641666321553,2.26949,3074.9,3074.2,2.00479]
[1641666322250,2.26749,3074.9,3074.2,2.00479]
[1641666322852,2.26749,3074.9,3073.9,2.00479]
[1641666323054,2.26749,3074.9,3072.6,1.17163329]
[1641666323253,2.00479,3073.6,3072.9,2.00479]
[1641666323453,0.2647,3073.5,3072.9,2.00479]
[1641666323652,0.2647,3073.5,3072.0,2.01142549]
[1641666323854,0.08135,3073.4,3071.9,1.05105243]
[1641666324054,0.08135,3073.4,3071.1,2.01142549]
[1641666324253,0.08136,3073.5,3070.7,2.01142549]
[1641666324554,0.08136,3073.5,3071.5,2.98812451]
[1641666324952,0.08136,3073.5,3072.1,2.01142549]
[1641666325151,0.08136,3073.5,3072.4,2.01142549]
[1641666325352,2.00479,3073.6,3071.6,0.97668895]
[1641666325353,2.00479,3073.0,3072.3,2.00479]
[1641666325554,2.00479,3073.0,3072.9,2.01142549]
[1641666325755,2.00479,3073.6,3072.9,2.01142549]
[1641666325954,2.00479,3073.6,3073.2,2.01142549]
[1641666326154,2.00479,3073.6,3072.5,1.55277656]
[1641666326354,2.00479,3073.6,3072.6,2.01142549]
[1641666326556,2.00479,3073.6,3073.4,2.01142549]
[1641666326755,35.3171,3075.4,3073.5,0.264788]
[1641666326756,0.6725,3075.1,3073.5,0.264788]
[1641666326953,34.2726,3075.6,3074.4,2.01142549]
[1641666326954,0.0813,3075.0,3074.4,2.01142549]
[1641666327154,0.2647,3074.9,3073.8,2.01142549]
[1641666327358,2.00479,3074.8,3074.1,2.00479]
[1641666327654,1.62580742,3075.0,3074.7,2.01142549]
[1641666327856,0.08129,3076.4,3074.8,2.01142549]
[1641666328154,0.08129,3076.4,3074.6,2.51062375]
[1641666328355,0.08129,3076.4,3075.5,2.01142549]
[1641666328558,0.08126,3076.9,3075.1,0.97556657]
[1641666328756,0.08126,3076.9,3074.1,5.18823236]
[1641666329158,1.62536347,3075.8,3074.1,6.81359583]
[1641666329358,1.62570698,3075.2,3074.7,2.00479]
[1641666329557,0.2647,3075.1,3074.7,2.00479]
[1641666330056,0.2647,3075.1,3074.1,3.17680687]
[1641666330456,0.2647,3075.1,3074.1,1.17201687]
[1641666330661,0.2647,3075.1,3073.0,2.01142549]
[1641666330861,0.08132,3075.0,3073.0,2.01142549]
[1641666331060,0.08132,3075.0,3073.2,0.97616873]
[1641666331260,1.62630714,3074.1,3072.3,2.41173735]
[1641666331460,2.00479,3073.6,3072.9,2.00479]
[1641666331662,2.00479,3073.9,3073.5,2.01142549]
[1641666331863,0.75383,3075.2,3073.8,2.01142549]
[1641666332060,0.0813,3075.8,3074.2,0.97583231]
[1641666332261,0.9749959,3077.0,3074.2,0.97583231]
[1641666332262,0.08129,3076.3,3074.2,0.97583231]
[1641666332462,0.08128,3076.5,3073.8,2.01142549]
[1641666332662,0.08128,3076.5,3074.1,0.97588697]
[1641666332863,0.81900308,3076.0,3074.1,0.97588697]
[1641666333062,0.81900308,3076.0,3074.3,2.01142549]
[1641666333063,0.08128,3075.9,3074.3,2.01142549]
[1641666333262,0.08128,3075.9,3074.1,0.97588697]
[1641666333463,2.00479,3074.8,3074.1,2.00479]
[1641666333763,0.346,3074.7,3073.0,1.17149198]
[1641666333962,0.2647,3074.7,3073.6,0.97605244]
[1641666334362,0.2647,3074.7,3073.3,1.5]
[1641666334562,0.2647,3074.7,3074.3,2.01142549]
[1641666334762,2.00479,3074.8,3074.4,0.905575]
[1641666334964,2.00479,3075.1,3074.4,2.01142549]
[1641666335163,0.2647,3075.0,3074.4,2.01142549]
[1641666335363,0.2647,3075.0,3074.6,2.00479]
[1641666335763,0.2647,3075.0,3074.3,2.00479]
[1641666335963,0.2647,3075.0,3073.7,0.97600915]
[1641666336164,0.0813,3074.9,3073.7,0.97600915]
[1641666336365,2.00479,3075.1,3073.7,0.97600915]
[1641666337363,2.00479,3074.2,3073.7,0.97600915]
[1641666337563,2.00479,3074.2,3074.1,2.01142549]
[1641666337763,2.00479,3074.2,3073.8,0.640787]
[1641666337966,2.00479,3074.2,3073.8,0.905575]
[1641666338165,2.00479,3074.2,3074.1,2.01142549]
[1641666338365,0.08132,3074.8,3074.1,2.01142549]
[1641666338566,2.00479,3075.1,3074.2,0.264788]
[1641666339069,2.00479,3075.1,3074.5,0.97575051]
[1641666339270,0.2647,3075.0,3074.5,0.97575051]
[1641666339468,0.2647,3075.0,3074.6,2.00479]
[1641666340369,1.62591051,3074.8,3073.6,2.01142549]
[1641666340569,15.76479,3075.1,3073.6,2.01142549]
[1641666340770,15.76479,3075.1,3073.5,1.17127218]
[1641666340771,0.0813,3075.0,3073.5,1.17127218]
[1641666340969,1.7071127,3075.0,3074.2,2.01142549]
[1641666341170,0.2647,3074.9,3074.2,2.01142549]
[1641666341370,2.00479,3074.6,3073.9,2.00479]
[1641666341569,0.2647,3074.5,3073.9,2.00479]
[1641666341771,0.2647,3074.5,3074.0,0.264788]
[1641666342971,0.2647,3074.5,3073.9,2.00479]
[1641666343172,0.2647,3074.5,3073.5,1.17127218]
[1641666343173,0.34602,3074.5,3073.5,1.17127218]
[1641666343372,2.00479,3073.7,3073.5,1.17127218]
[1641666343571,2.00479,3073.7,3073.6,0.264788]
[1641666343771,2.00479,3073.7,3073.5,1.17127218]
[1641666343970,2.00479,3073.7,3073.6,0.264788]
[1641666344172,2.00479,3074.6,3073.6,2.91700049]
[1641666344373,2.00479,3074.6,3074.4,2.01142549]
[1641666344572,2.00479,3074.6,3074.2,0.264788]
[1641666344772,2.00479,3074.6,3074.4,2.01142549]
[1641666345175,0.81900308,3075.3,3074.4,3.25199288]
[1641666345373,0.81900308,3075.3,3074.6,2.00479]
[1641666345374,2.82379308,3075.3,3074.6,2.00479]
[1641666345573,2.82379308,3075.3,3075.2,2.01142549]
[1641666345776,1.8483077,3075.3,3075.2,2.01142549]
[1641666345974,1.8483077,3075.3,3074.6,2.00479]
[1641666346373,1.8483077,3075.3,3073.7,2.01142549]
[1641666346574,1.8483077,3075.3,3073.5,1.17128536]
[1641666346575,0.0813,3075.2,3073.5,1.17128536]
[1641666346877,1.8483077,3075.3,3074.3,1.17099726]
[1641666347075,1.8483077,3075.3,3075.2,2.01142549]
[1641666347375,2.00479,3075.6,3075.2,0.264788]
[1641666347874,2.527166,3075.6,3075.0,0.11841228]
[1641666348275,0.264788,3075.5,3074.6,2.00479]
[1641666348676,1.32958744,3075.7,3075.4,2.01142549]
[1641666348878,5.414,3076.6,3075.6,2.01142549]
[1641666349077,5.414,3076.6,3076.1,2.01142549]
[1641666349276,2.95446761,3076.8,3076.2,0.640787]
[1641666349479,1.59437544,3076.8,3076.0,2.00479]
[1641666349675,1.59437544,3076.8,3075.7,2.00479]
[1641666349676,0.08125,3076.7,3075.7,2.00479]
[1641666349876,1.62507557,3076.4,3075.0,1.17070735]
[1641666350086,1.62507557,3076.4,3075.1,2.01142549]
[1641666350380,1.62507557,3076.4,3074.3,1.62507556]
[1641666350381,0.08128,3076.3,3074.3,1.5]
[1641666350580,0.08128,3076.7,3076.2,2.01142549]
[1641666350778,0.603656,3076.7,3076.2,2.01142549]
[1641666350985,0.522376,3076.7,3076.2,2.01142549]
[1641666351781,0.522376,3076.7,3075.8,2.00479]
[1641666351980,0.08125,3076.6,3075.1,3.18211796]
[1641666352178,0.522376,3076.7,3075.6,0.97539862]
[1641666352382,2.00479,3076.9,3075.9,2.01142549]
[1641666352780,2.00479,3076.9,3076.8,2.98645293]
[1641666352981,1.32958744,3077.5,3076.8,3.62723993]
[1641666353280,1.32958744,3077.7,3077.1,2.01142549]
[1641666353482,1.32958744,3077.7,3077.1,2.00479]
[1641666353681,1.32958744,3077.7,3077.1,4.01621549]
[1641666354682,1.32958744,3077.7,3077.6,2.01142549]
[1641666354883,1.32958744,3077.7,3077.6,2.65221249]
[1641666355482,1.58628264,3077.9,3077.7,0.00191256]
[1641666355683,1.36865487,3078.3,3077.7,0.00191256]
[1641666355883,1.36865487,3078.3,3077.7,2.01333805]
[1641666356084,1.36865487,3078.3,3078.2,3.51142549]
[1641666356283,1.36865487,3078.3,3078.2,4.63408453]
[1641666356484,1.36865487,3078.3,3078.2,1.12265904]
[1641666356783,1.58628264,3078.5,3078.2,1.12265904]
[1641666356986,1.58628264,3078.5,3078.2,0.640787]
[1641666357184,1.58628264,3078.5,3077.8,0.97470263]
[1641666357384,1.62369293,3079.0,3078.4,2.00479]
[1641666357584,1.62398034,3078.5,3077.7,0.00191256]
[1641666357784,0.08121,3079.3,3077.7,0.00191256]
[1641666357986,13.76,3078.6,3076.4,2.01142549]
[1641666358192,1.62461091,3077.3,3076.3,1.40426451]
[1641666358387,1.62464258,3077.2,3076.0,2.01142549]
[1641666358586,1.62440242,3077.7,3076.5,2.01142549]
[1641666358786,1.62440242,3077.7,3075.3,1.40473244]
[1641666358787,1.62463994,3077.2,3075.3,1.40473244]
[1641666358986,1.62485112,3076.8,3075.3,1.40473244]
[1641666359187,0.08126,3076.7,3075.3,1.40473244]
[1641666359390,1.62519441,3076.2,3075.5,2.00479]
[1641666359590,0.787164,3076.1,3075.5,2.00479]
[1641666359987,0.787164,3076.1,3075.0,1.10418213]
[1641666360186,0.787164,3076.1,3074.1,5.65665962]
[1641666360187,0.08128,3076.0,3074.1,2.98729715]
[1641666360585,1.62556163,3075.5,3074.1,2.47587166]
[1641666360785,1.62556163,3075.5,3074.1,2.98729715]
[1641666360987,0.08129,3075.4,3074.8,2.01142549]
[1641666361187,1.62542688,3075.7,3075.2,2.01142549]
[1641666361388,2.00479,3075.8,3075.1,2.00479]
[1641666361588,0.787164,3075.7,3075.1,2.00479]
[1641666362789,0.08128,3075.6,3075.1,2.00479]
[1641666362990,0.264788,3075.5,3075.1,2.00479]
[1641666363190,1.62571755,3075.2,3073.9,2.01142549]
[1641666363389,2.00479,3074.7,3074.0,2.00479]
[1641666363590,0.787164,3074.6,3074.0,2.00479]
[1641666363789,0.787164,3074.6,3073.7,2.00479]
[1641666363991,14.628484,3074.6,3073.1,1.60380952]
[1641666364192,9.4885745,3074.3,3073.1,1.60380952]
[1641666364390,1.62709305,3073.2,3072.8,1.05520159]
[1641666364593,0.08135,3073.1,3072.8,1.05520159]
[1641666365093,0.08135,3074.5,3072.8,1.05520159]
[1641666365490,0.08132,3074.9,3073.3,2.01142549]
[1641666365695,0.08132,3075.4,3073.2,0.51142549]
[1641666365892,13.84132,3075.4,3073.0,2.00479]
[1641666366092,13.76,3075.2,3073.0,2.00479]
[1641666366391,13.76,3075.0,3073.0,2.00479]
[1641666366691,1.62632566,3074.0,3073.0,2.00479]
[1641666367292,1.62632566,3074.0,3073.2,2.01142549]
[1641666367496,2.00479,3073.5,3073.3,0.640787]
[1641666368593,2.00479,3073.8,3073.3,0.640787]
[1641666369194,1.62616169,3074.3,3073.7,2.01142549]
[1641666369394,1.62573341,3075.1,3074.2,2.01142549]
[1641666369594,1.62573341,3075.1,3074.0,2.98071616]
[1641666369795,2.00479,3075.5,3074.3,1.62524196]
[1641666369997,0.0813,3076.2,3074.5,2.98718259]
[1641666370197,0.08128,3076.3,3075.8,2.01142549]
[1641666370406,2.41235313,3076.2,3076.1,2.01142549]
[1641666370600,0.522376,3076.2,3075.8,2.01142549]
[1641666370803,1.89003788,3076.1,3074.6,1.05991461]